fUST/lending_fUST_20250516
["ID","MTS","AMOUNT","RATE_DAILY","PERIOD"]
[361176249,1747324873548,1000.0,0.00027912,120]
[361176250,1747324881271,1000.0,0.00027912,120]
[361176251,1747324888116,500.0,0.00027913,120]
[361176252,1747324894632,989.0,0.00027913,120]
[361176258,1747325347142,-1558.09298952,0.00015679,14]
[361176259,1747325349219,-3441.90701048,0.00015679,14]
[361176260,1747325349245,-300.0,0.00015837,2]
[361176261,1747325349267,-300.0,0.00015837,2]
[361176262,1747325349295,-300.0,0.00015838,2]
[361176263,1747325349317,-179.0,0.00015838,2]
[361176264,1747325349340,-1141.0,0.00015838,2]
[361176265,1747325349363,-9484.37624276,0.00015839,2]
[361176266,1747325355103,-318.4692868,0.00015839,2]
[361176315,1747325432628,-2008.34526944,0.0001568,2]
[361176318,1747325432639,-2991.65473056,0.0001568,2]
[361176320,1747325432649,-9.80267944,0.00015839,2]
[361176322,1747325432658,-200.35865009,0.00016306,2]
[361176324,1747325432667,-1200.0,0.00016472,2]
[361176326,1747325432677,-157.21894377,0.00016472,2]
[361176328,1747325432687,-450.0,0.00016472,2]
[361176330,1747325432696,-400.0,0.00016472,2]
[361176332,1747325432705,-400.0,0.00016472,2]
[361176334,1747325432714,-2880.64093775,0.00016473,2]
[361176336,1747325432723,-300.0,0.00016562,2]
[361176338,1747325432733,-369.96,0.00016563,3]
[361176340,1747325432742,-14504.46102522,0.00016563,2]
[361176842,1747325438535,-467.30697217,0.00015523,2]
[361176903,1747325440778,-270.47562208,0.00015523,2]
[361177040,1747325443580,-4262.21740575,0.00015523,2]
[361177042,1747325443592,-181.6312261,0.00015534,2]
[361177044,1747325443602,-400.0,0.00016472,2]
[361177046,1747325443612,-6585.50071258,0.00016563,2]
[361177048,1747325443623,-500.0,0.00016569,2]
[361177050,1747325443633,-500.0,0.00016569,2]
[361177054,1747325443645,-500.0,0.00016569,2]
[361177057,1747325443656,-500.0,0.00016569,2]
[361177060,1747325443667,-500.0,0.00016569,2]
[361177063,1747325443678,-500.0,0.00016569,2]
[361177064,1747325443689,-500.0,0.00016569,2]
[361177065,1747325443699,-228.84954443,0.00016569,2]
[361177066,1747325443710,-500.0,0.00016569,2]
[361177067,1747325443721,-666.77556076,0.00016569,2]
[361177069,1747325443731,-500.0,0.00016569,2]
[361177071,1747325443742,-500.0,0.00016569,2]
[361177074,1747325443754,-666.77556076,0.00016569,2]
[361177077,1747325443764,-473.19702269,0.00016569,2]
[361177080,1747325443775,-500.0,0.00016569,2]
[361177083,1747325443785,-500.0,0.00016569,2]
[361177086,1747325443796,-666.77556076,0.00016569,2]
[361177088,1747325443807,-666.77556076,0.00016569,2]
[361177091,1747325443817,-500.0,0.00016569,2]
[361177093,1747325443828,-500.0,0.00016569,2]
[361177095,1747325443839,-666.77556076,0.00016569,2]
[361177097,1747325443851,-500.0,0.00016569,2]
[361177099,1747325443862,-666.77556076,0.00016569,2]
[361177101,1747325443873,-500.0,0.00016569,2]
[361177103,1747325443884,-630.48249339,0.00016569,2]
[361177105,1747325443895,-666.77556076,0.00016569,2]
[361177107,1747325443906,-500.0,0.00016569,2]
[361177110,1747325443918,-666.77556076,0.00016569,2]
[361177112,1747325443928,-500.0,0.00016569,2]
[361177114,1747325443939,-666.77556076,0.00016569,2]
[361177116,1747325443950,-264.66562168,0.00016569,2]
[361177118,1747325443961,-666.77556076,0.00016569,2]
[361177120,1747325443972,-666.77556076,0.00016569,2]
[361177123,1747325443982,-666.77556076,0.00016569,2]
[361177125,1747325443993,-666.77556076,0.00016569,2]
[361177127,1747325444003,-666.77556076,0.00016569,2]
[361177129,1747325444013,-666.77556076,0.00016569,2]
[361177131,1747325444024,-666.77556076,0.00016569,2]
[361177133,1747325444035,-666.77556076,0.00016569,2]
[361177135,1747325444045,-666.77556076,0.00016569,2]
[361177137,1747325444056,-666.77556076,0.00016569,2]
[361177139,1747325444067,-666.77556076,0.00016569,2]
[361177142,1747325444078,-666.77556076,0.00016569,2]
[361177144,1747325444088,-666.77556076,0.00016569,2]
[361177146,1747325444099,-666.77556076,0.00016569,2]
[361177148,1747325444110,-666.77556076,0.00016569,2]
[361177150,1747325444120,-666.77556076,0.00016569,2]
[361177152,1747325444131,-666.77556076,0.00016569,2]
[361177155,1747325444142,-666.77556076,0.00016569,2]
[361177157,1747325444152,-666.77556076,0.00016569,2]
[361177159,1747325444163,-666.77556076,0.00016569,2]
[361177161,1747325444174,-666.77556076,0.00016569,2]
[361177163,1747325444184,-666.77556076,0.00016569,2]
[361177165,1747325444195,-666.77556076,0.00016569,2]
[361177168,1747325444206,-666.77556076,0.00016569,2]
[361177170,1747325444219,-666.77556076,0.00016569,2]
[361177172,1747325444232,-666.77556076,0.00016569,2]
[361177174,1747325444243,-666.77556076,0.00016569,2]
[361177176,1747325444254,-666.77556076,0.00016569,2]
[361177178,1747325444266,-666.77556076,0.00016569,2]
[361177181,1747325444277,-666.77556076,0.00016569,2]
[361177183,1747325444287,-666.77556076,0.00016569,2]
[361177185,1747325444300,-666.77556076,0.00016569,2]
[361177187,1747325444311,-666.77556076,0.00016569,2]
[361177190,1747325444323,-666.77556076,0.00016569,2]
[361177192,1747325444333,-666.77556076,0.00016569,2]
[361177194,1747325444345,-666.77556076,0.00016569,2]
[361177196,1747325444356,-666.77556076,0.00016569,2]
[361177198,1747325444368,-666.77556076,0.00016569,2]
[361177201,1747325444378,-666.77556076,0.00016569,2]
[361177203,1747325444389,-666.77556076,0.00016569,2]
[361177205,1747325444400,-666.77556076,0.00016569,2]
[361177207,1747325444411,-666.77556076,0.00016569,2]
[361177209,1747325444422,-400.0,0.00016571,2]
[361177211,1747325444432,-400.0,0.00016571,2]
[361177213,1747325444443,-164.25264737,0.00016571,2]
[361177216,1747325444453,-400.0,0.00016571,2]
[361177218,1747325444464,-153.9139641,0.00016571,2]
[361177220,1747325444475,-450.0,0.00016571,2]
[361177239,1747325444485,-450.0,0.00016571,2]
[361177241,1747325444671,-450.0,0.00016571,2]
[361177243,1747325444683,-450.0,0.00016571,2]
[361177245,1747325444692,-450.0,0.00016571,2]
[361177247,1747325444703,-450.0,0.00016571,2]
[361177249,1747325444713,-450.0,0.00016571,2]
[361177251,1747325444722,-450.0,0.00016571,2]
[361177253,1747325444731,-400.0,0.00016572,2]
[361177255,1747325444740,-400.0,0.00016572,2]
[361177257,1747325444750,-400.0,0.00016572,2]
[361177259,1747325444759,-400.0,0.00016572,2]
[361177261,1747325444768,-400.0,0.00016572,2]
[361177263,1747325444778,-400.0,0.00016572,2]
[361177265,1747325444787,-400.0,0.00016572,2]
[361177267,1747325444796,-604.20864106,0.00016572,2]
[361177269,1747325444806,-500.0,0.00016572,2]
[361177271,1747325444817,-167.69526839,0.00016572,2]
[361177273,1747325444827,-424.88244459,0.00016572,2]
[361177275,1747325444836,-500.0,0.00016572,2]
[361177277,1747325444846,-450.0,0.00016572,2]
[361177279,1747325444856,-500.0,0.00016573,2]
[361177281,1747325444866,-400.0,0.00016573,2]
[361177283,1747325444876,-400.0,0.00016573,2]
[361177285,1747325444886,-400.0,0.00016573,2]
[361177287,1747325444896,-443.09,0.00016573,2]
[361177289,1747325444905,-341.17892606,0.00016573,2]
[361177291,1747325444915,-400.0,0.00016573,2]
[361177293,1747325444924,-400.0,0.00016573,2]
[361177295,1747325444933,-400.0,0.00016573,2]
[361177297,1747325444943,-1000.0,0.00016573,2]
[361177299,1747325444952,-400.0,0.00016573,2]
[361177301,1747325444961,-400.0,0.00016573,2]
[361177303,1747325444970,-400.0,0.00016573,2]
[361177305,1747325444980,-200.0,0.00016573,2]
[361177307,1747325444988,-480.92,0.00016573,2]
[361177309,1747325444998,-400.0,0.00016573,2]
[361177310,1747325445008,-400.0,0.00016573,2]
[361177313,1747325445017,-400.0,0.00016573,2]
[361177315,1747325445027,-400.0,0.00016573,2]
[361177317,1747325445036,-400.0,0.00016573,2]
[361177319,1747325445045,-400.0,0.00016573,2]
[361177321,1747325445055,-400.0,0.00016573,2]
[361177322,1747325445064,-400.0,0.00016573,2]
[361177325,1747325445074,-210.83745282,0.00016573,2]
[361177326,1747325445084,-400.0,0.00016573,2]
[361177328,1747325445093,-400.0,0.00016573,2]
[361177331,1747325445102,-400.0,0.00016573,2]
[361177333,1747325445112,-552.8,0.00016573,2]
[361177335,1747325445121,-400.0,0.00016573,2]
[361177336,1747325445130,-400.0,0.00016573,2]
[361177339,1747325445140,-400.0,0.00016573,2]
[361177341,1747325445149,-400.0,0.00016573,2]
[361177343,1747325445160,-400.0,0.00016573,2]
[361177345,1747325445169,-400.0,0.00016573,2]
[361177347,1747325445178,-436.36582167,0.00016573,2]
[361177349,1747325445187,-400.0,0.00016573,2]
[361177350,1747325445196,-400.0,0.00016573,2]
[361177352,1747325445206,-450.0,0.00016573,2]
[361177355,1747325445217,-450.0,0.00016573,2]
[361177357,1747325445227,-400.0,0.00016573,2]
[361177359,1747325445237,-400.0,0.00016573,2]
[361177361,1747325445247,-400.0,0.00016573,2]
[361177363,1747325445256,-400.0,0.00016573,2]
[361177365,1747325445266,-400.0,0.00016573,2]
[361177366,1747325445275,-400.0,0.00016573,2]
[361177368,1747325445284,-477.0,0.00016573,2]
[361177371,1747325445294,-518.97,0.00016573,2]
[361177373,1747325445303,-400.0,0.00016573,2]
[361177375,1747325445313,-400.0,0.00016573,2]
[361177376,1747325445322,-400.0,0.00016573,2]
[361177379,1747325445332,-400.0,0.00016573,2]
[361177381,1747325445341,-400.0,0.00016573,2]
[361177383,1747325445350,-400.0,0.00016573,2]
[361177385,1747325445360,-450.0,0.00016573,2]
[361177387,1747325445370,-400.0,0.00016573,2]
[361177389,1747325445379,-400.0,0.00016573,2]
[361177391,1747325445388,-400.0,0.00016573,2]
[361177393,1747325445397,-400.0,0.00016573,2]
[361177395,1747325445406,-400.0,0.00016573,2]
[361177397,1747325445415,-400.60573839,0.00016573,2]
[361177399,1747325445424,-400.0,0.00016573,2]
[361177401,1747325445434,-400.0,0.00016573,2]
[361177403,1747325445443,-446.09,0.00016573,2]
[361177405,1747325445452,-450.0,0.00016573,2]
[361177407,1747325445461,-400.0,0.00016573,2]
[361177409,1747325445470,-400.0,0.00016573,2]
[361177411,1747325445479,-400.0,0.00016573,2]
[361177413,1747325445487,-400.0,0.00016573,2]
[361177415,1747325445497,-400.0,0.00016573,2]
[361177417,1747325445505,-400.0,0.00016573,2]
[361177419,1747325445514,-450.0,0.00016573,2]
[361177421,1747325445524,-450.0,0.00016573,2]
[361177423,1747325445533,-400.0,0.00016573,2]
[361177425,1747325445542,-400.0,0.00016573,2]
[361177427,1747325445551,-400.0,0.00016573,2]
[361177429,1747325445559,-400.0,0.00016573,2]
[361177431,1747325445569,-400.0,0.00016573,2]
[361177433,1747325445578,-400.0,0.00016573,2]
[361177435,1747325445587,-450.0,0.00016573,2]
[361177437,1747325445596,-400.0,0.00016573,2]
[361177439,1747325445606,-400.0,0.00016573,2]
[361177441,1747325445615,-400.0,0.00016573,2]
[361177443,1747325445623,-450.0,0.00016573,2]
[361177445,1747325445633,-400.0,0.00016573,2]
[361177447,1747325445643,-400.0,0.00016573,2]
[361177449,1747325445652,-400.0,0.00016573,2]
[361177451,1747325445662,-400.0,0.00016573,2]
[361177453,1747325445671,-450.0,0.00016573,2]
[361177455,1747325445680,-450.0,0.00016573,2]
[361177457,1747325445690,-400.0,0.00016573,2]
[361177459,1747325445699,-400.0,0.00016573,2]
[361177461,1747325445708,-400.0,0.00016573,2]
[361177463,1747325445718,-400.0,0.00016573,2]
[361177465,1747325445728,-400.0,0.00016573,2]
[361177467,1747325445739,-450.0,0.00016573,2]
[361177469,1747325445748,-450.0,0.00016573,2]
[361177471,1747325445758,-400.0,0.00016573,2]
[361177473,1747325445768,-446.36,0.00016573,2]
[361177475,1747325445780,-450.0,0.00016573,2]
[361177477,1747325445790,-400.0,0.00016573,2]
[361177479,1747325445799,-593.58,0.00016573,2]
[361177481,1747325445809,-450.0,0.00016573,2]
[361177483,1747325445818,-455.22,0.00016573,2]
[361177485,1747325445827,-400.0,0.00016573,2]
[361177487,1747325445837,-400.0,0.00016573,2]
[361177490,1747325445847,-450.0,0.00016573,2]
[361177491,1747325445857,-400.0,0.00016573,2]
[361177493,1747325445871,-400.0,0.00016573,2]
[361177495,1747325445881,-400.0,0.00016573,2]
[361177497,1747325445891,-450.0,0.00016573,2]
[361177499,1747325445901,-450.0,0.00016573,2]
[361177502,1747325445911,-450.0,0.00016573,2]
[361177505,1747325445921,-450.0,0.00016573,2]
[361177507,1747325445930,-383.60187346,0.00016573,2]
[361177509,1747325445939,-400.0,0.00016573,2]
[361177511,1747325445948,-400.0,0.00016573,2]
[361177513,1747325445957,-400.0,0.00016573,2]
[361177515,1747325445967,-400.0,0.00016573,2]
[361177517,1747325445976,-400.0,0.00016573,2]
[361177519,1747325445986,-491.85,0.00016573,2]
[361177521,1747325445995,-400.0,0.00016573,2]
[361177523,1747325446004,-434.32,0.00016573,2]
[361177525,1747325446014,-400.0,0.00016573,2]
[361177527,1747325446023,-400.0,0.00016573,2]
[361177529,1747325446032,-450.0,0.00016573,2]
[361177531,1747325446041,-450.0,0.00016573,2]
[361177533,1747325446051,-400.0,0.00016573,2]
[361177535,1747325446060,-450.0,0.00016573,2]
[361177537,1747325446070,-450.0,0.00016573,2]
[361177539,1747325446079,-450.0,0.00016573,2]
[361177541,1747325446088,-400.0,0.00016573,2]
[361177543,1747325446097,-570.21,0.00016573,2]
[361177545,1747325446107,-450.0,0.00016573,2]
[361177547,1747325446123,-450.0,0.00016573,2]
[361177548,1747325446132,-400.0,0.00016573,2]
[361177550,1747325446142,-400.0,0.00016573,2]
[361177552,1747325446151,-450.0,0.00016573,2]
[361177554,1747325446161,-400.0,0.00016573,2]
[361177556,1747325446170,-400.0,0.00016573,2]
[361177558,1747325446179,-400.0,0.00016573,2]
[361177560,1747325446189,-400.0,0.00016573,2]
[361177562,1747325446198,-400.0,0.00016573,2]
[361177564,1747325446207,-584.55,0.00016573,2]
[361177566,1747325446219,-500.0,0.00016573,2]
[361177568,1747325446228,-450.0,0.00016573,2]
[361177570,1747325446238,-450.0,0.00016573,2]
[361177572,1747325446248,-450.0,0.00016573,2]
[361177574,1747325446259,-450.0,0.00016573,2]
[361177576,1747325446268,-450.0,0.00016573,2]
[361177578,1747325446278,-400.0,0.00016573,2]
[361177580,1747325446287,-224.67902297,0.00016573,2]
[361177582,1747325446298,-450.0,0.00016573,2]
[361177584,1747325446307,-400.0,0.00016573,2]
[361177586,1747325446317,-450.0,0.00016573,2]
[361177588,1747325446326,-400.0,0.00016573,2]
[361177590,1747325446336,-400.0,0.00016573,2]
[361177592,1747325446345,-400.0,0.00016573,2]
[361177594,1747325446354,-400.0,0.00016573,2]
[361177596,1747325446368,-400.0,0.00016573,2]
[361177598,1747325446378,-400.0,0.00016573,2]
[361177600,1747325446388,-400.0,0.00016573,2]
[361177602,1747325446397,-400.0,0.00016573,2]
[361177604,1747325446406,-400.0,0.00016573,2]
[361177606,1747325446416,-400.0,0.00016573,2]
[361177608,1747325446425,-400.0,0.00016573,2]
[361177610,1747325446435,-450.0,0.00016573,2]
[361177612,1747325446444,-400.0,0.00016573,2]
[361177614,1747325446454,-450.0,0.00016573,2]
[361177616,1747325446463,-400.0,0.00016573,2]
[361177618,1747325446473,-400.0,0.00016573,2]
[361177620,1747325446482,-400.0,0.00016573,2]
[361177622,1747325446492,-450.0,0.00016573,2]
[361177624,1747325446501,-400.0,0.00016573,2]
[361177626,1747325446510,-400.0,0.00016573,2]
[361177628,1747325446520,-473.13,0.00016573,2]
[361177630,1747325446529,-400.0,0.00016573,2]
[361177632,1747325446539,-400.0,0.00016573,2]
[361177634,1747325446548,-400.0,0.00016573,2]
[361177636,1747325446558,-400.0,0.00016573,2]
[361177638,1747325446567,-481.16,0.00016573,2]
[361177640,1747325446576,-381.16939089,0.00016573,2]
[361177642,1747325446585,-400.0,0.00016573,2]
[361177644,1747325446595,-400.0,0.00016573,2]
[361177646,1747325446604,-467.79,0.00016573,2]
[361177648,1747325446616,-450.0,0.00016573,2]
[361177650,1747325446625,-265.74534492,0.00016573,2]
[361177652,1747325446635,-260.84356563,0.00016573,2]
[361177654,1747325446644,-450.0,0.00016573,2]
[361177656,1747325446653,-439.97627564,0.00016573,2]
[361177658,1747325446662,-151.0,0.00016573,2]
[361177659,1747325446671,-182.896823,0.00016573,2]
[361177661,1747325446680,-450.0,0.00016573,2]
[361177663,1747325446690,-151.0,0.00016573,2]
[361177665,1747325446699,-226.217732,0.00016573,2]
[361177668,1747325446709,-288.031109,0.00016573,2]
[361177669,1747325446718,-226.217732,0.00016573,2]
[361177671,1747325446727,-373.333656,0.00016573,2]
[361177673,1747325446737,-288.031109,0.00016573,2]
[361177675,1747325446746,-450.0,0.00016573,2]
[361177677,1747325446756,-373.333656,0.00016573,2]
[361177679,1747325446765,-151.0,0.00016573,2]
[361177681,1747325446774,-151.0,0.00016573,2]
[361177683,1747325446783,-400.0,0.00016573,2]
[361177685,1747325446793,-400.0,0.00016573,2]
[361177687,1747325446802,-166.695878,0.00016573,2]
[361177689,1747325446811,-166.695878,0.00016573,2]
[361177691,1747325446820,-450.0,0.00016573,2]
[361177693,1747325446830,-151.0,0.00016573,2]
[361177695,1747325446840,-400.0,0.00016573,2]
[361177697,1747325446851,-450.0,0.00016573,2]
[361177699,1747325446860,-1169.87,0.00016573,2]
[361177701,1747325446872,-400.0,0.00016573,2]
[361177703,1747325446881,-274.77235073,0.00016573,2]
[361177705,1747325446890,-405.54637909,0.00016573,2]
[361177707,1747325446899,-450.0,0.00016573,2]
[361177709,1747325446908,-151.0,0.00016573,2]
[361177711,1747325446917,-151.0,0.00016573,2]
[361177713,1747325446926,-400.0,0.00016573,2]
[361177715,1747325446936,-400.0,0.00016573,2]
[361177717,1747325446945,-400.0,0.00016573,2]
[361177719,1747325446954,-450.0,0.00016573,2]
[361177721,1747325446963,-400.0,0.00016573,2]
[361177723,1747325446973,-432.455935,0.00016573,2]
[361177725,1747325446982,-365.68280389,0.00016573,2]
[361177727,1747325446991,-432.455935,0.00016573,2]
[361177729,1747325447000,-400.0,0.00016573,2]
[361177731,1747325447009,-400.0,0.00016573,2]
[361177733,1747325447018,-400.0,0.00016573,2]
[361177735,1747325447027,-151.0,0.00016573,2]
[361177737,1747325447036,-450.0,0.00016573,2]
[361177739,1747325447046,-400.0,0.00016573,2]
[361177741,1747325447055,-400.0,0.00016573,2]
[361177743,1747325447064,-151.0,0.00016573,2]
[361177745,1747325447073,-400.0,0.00016573,2]
[361177747,1747325447082,-292.45118039,0.00016573,2]
[361177749,1747325447091,-400.0,0.00016573,2]
[361177751,1747325447101,-400.0,0.00016573,2]
[361177753,1747325447110,-400.0,0.00016573,2]
[361177754,1747325447121,-469.10966085,0.00016573,2]
[361177756,1747325447130,-400.0,0.00016573,2]
[361177758,1747325447140,-400.0,0.00016573,2]
[361177760,1747325447149,-400.0,0.00016573,2]
[361177762,1747325447158,-400.0,0.00016573,2]
[361177764,1747325447167,-400.0,0.00016573,2]
[361177766,1747325447176,-401.96296215,0.00016573,2]
[361177768,1747325447186,-555.94,0.00016574,2]
[361177770,1747325447196,-400.0,0.00016574,2]
[361177772,1747325447204,-400.0,0.00016574,2]
[361177774,1747325447214,-400.0,0.00016574,2]
[361177776,1747325447226,-400.0,0.00016574,2]
[361177778,1747325447235,-400.0,0.00016574,2]
[361177780,1747325447244,-400.0,0.00016574,2]
[361177782,1747325447253,-400.0,0.00016574,2]
[361177784,1747325447264,-151.0,0.00016574,2]
[361177786,1747325447273,-152.142468,0.00016574,2]
[361177788,1747325447282,-151.0,0.00016574,2]
[361177790,1747325447293,-504.68,0.00016609,2]
[361177792,1747325447302,-450.0,0.00016708,2]
[361177794,1747325447311,-450.0,0.00016708,2]
[361177796,1747325447320,-450.0,0.00016708,2]
[361177798,1747325447330,-450.0,0.0001671,2]
[361177800,1747325447339,-221.33,0.0001671,2]
[361177802,1747325447349,-350.0,0.0001671,2]
[361177804,1747325447359,-450.0,0.0001671,2]
[361177806,1747325447371,-350.0,0.0001671,2]
[361177808,1747325447381,-450.0,0.0001671,2]
[361177810,1747325447392,-450.0,0.0001671,2]
[361177812,1747325447402,-350.0,0.0001671,2]
[361177814,1747325447412,-321.02,0.0001671,2]
[361177816,1747325447421,-524.95,0.0001671,2]
[361177819,1747325447431,-284.91,0.0001671,2]
[361177820,1747325447441,-450.0,0.0001671,2]
[361177822,1747325447450,-162.03,0.0001671,2]
[361177824,1747325447460,-170.92,0.0001671,2]
[361177826,1747325447470,-343.02,0.0001671,2]
[361177828,1747325447479,-490.07,0.0001671,2]
[361177830,1747325447489,-232.9,0.0001671,2]
[361177832,1747325447498,-450.0,0.0001671,2]
[361177834,1747325447507,-450.0,0.0001671,2]
[361177836,1747325447517,-275.54,0.0001671,2]
[361177838,1747325447526,-450.0,0.0001671,2]
[361177840,1747325447536,-450.0,0.0001671,2]
[361177842,1747325447545,-178.11,0.0001671,2]
[361177844,1747325447554,-450.0,0.0001671,2]
[361177846,1747325447563,-545.04,0.0001671,2]
[361177848,1747325447572,-317.32,0.0001671,2]
[361177850,1747325447582,-520.34,0.0001671,2]
[361177852,1747325447592,-450.0,0.0001671,2]
[361177854,1747325447601,-361.1,0.0001671,2]
[361177856,1747325447611,-350.0,0.0001671,2]
[361177858,1747325447621,-316.18,0.0001671,2]
[361177860,1747325447630,-350.0,0.0001671,2]
[361177862,1747325447639,-450.0,0.0001671,2]
[361177864,1747325447648,-350.0,0.0001671,2]
[361177866,1747325447657,-201.44,0.0001671,2]
[361177868,1747325447666,-450.0,0.0001671,2]
[361177870,1747325447676,-350.0,0.0001671,2]
[361177872,1747325447685,-450.0,0.0001671,2]
[361177874,1747325447695,-450.0,0.0001671,2]
[361177876,1747325447705,-450.0,0.0001671,2]
[361177878,1747325447715,-151.0,0.0001671,2]
[361177880,1747325447724,-373.333656,0.0001671,2]
[361177882,1747325447734,-450.0,0.0001671,2]
[361177884,1747325447743,-373.333656,0.0001671,2]
[361177886,1747325447752,-151.0,0.0001671,2]
[361177888,1747325447762,-151.0,0.0001671,2]
[361177890,1747325447771,-166.695878,0.0001671,2]
[361177892,1747325447781,-166.695878,0.0001671,2]
[361177894,1747325447791,-450.0,0.0001671,2]
[361177896,1747325447802,-151.0,0.0001671,2]
[361177898,1747325447812,-174.38,0.0001671,2]
[361177900,1747325447821,-1169.87,0.0001671,2]
[361177906,1747325447945,-196.11,0.0001671,2]
[361177907,1747325447955,-450.0,0.0001671,2]
[361177908,1747325447966,-432.455935,0.0001671,2]
[361177909,1747325447977,-432.455935,0.0001671,2]
[361177910,1747325447987,-151.0,0.0001671,2]
[361177911,1747325447996,-450.0,0.0001671,2]
[361177912,1747325448006,-151.0,0.0001671,2]
[361177913,1747325448019,-434.98959066,0.00016711,2]
[361177914,1747325448029,-5000.0,0.00016714,2]
[361177915,1747325448039,-2325.00000003,0.00016714,2]
[361177916,1747325448049,-2880.64093774,0.00016823,2]
[361177917,1747325448059,-208.938628,0.00016845,2]
[361177918,1747325448069,-151.0,0.00016845,2]
[361177919,1747325448080,-151.0,0.00016845,2]
[361177920,1747325448090,-203.695932,0.00016845,2]
[361177921,1747325448101,-203.695932,0.00016845,2]
[361177922,1747325448111,-1111.845038,0.00016845,2]
[361177923,1747325448123,-1111.845038,0.00016845,2]
[361177924,1747325448133,-450.0,0.00016845,2]
[361177926,1747325448143,-450.0,0.00016845,2]
[361177928,1747325448154,-450.0,0.00016845,2]
[361177930,1747325448164,-151.0,0.00016846,2]
[361177932,1747325448174,-400.0,0.00016847,2]
[361177933,1747325448184,-284.06,0.00016847,2]
[361177934,1747325448194,-349.12,0.00016847,2]
[361177935,1747325448204,-450.0,0.00016847,2]
[361177937,1747325448214,-197.94,0.00016847,2]
[361177939,1747325448227,-450.0,0.00016847,2]
[361177940,1747325448236,-450.0,0.00016847,2]
[361177942,1747325448246,-450.0,0.00016847,2]
[361177944,1747325448255,-184.66,0.00016847,2]
[361177945,1747325448266,-215.12,0.00016847,2]
[361177948,1747325448276,-223.25,0.00016847,2]
[361177949,1747325448286,-450.0,0.00016847,2]
[361177950,1747325448298,-252.93,0.00016847,2]
[361177952,1747325448308,-450.0,0.00016847,2]
[361177953,1747325448318,-591.3,0.00016847,2]
[361177954,1747325448328,-251.38,0.00016847,2]
[361177955,1747325448338,-151.0,0.00016847,2]
[361177956,1747325448349,-450.0,0.00016847,2]
[361177957,1747325448359,-226.217732,0.00016847,2]
[361177958,1747325448372,-288.031109,0.00016847,2]
[361177959,1747325448382,-226.217732,0.00016847,2]
[361177960,1747325448393,-288.031109,0.00016847,2]
[361177961,1747325448403,-450.0,0.00016847,2]
[361177962,1747325448413,-450.0,0.00016847,2]
[361177963,1747325448423,-1169.87,0.00016847,2]
[361177964,1747325448433,-151.0,0.00016847,2]
[361177965,1747325448443,-224.32,0.00016847,2]
[361177966,1747325448453,-450.0,0.00016847,2]
[361177967,1747325448463,-450.0,0.00016848,2]
[361177968,1747325448471,-160.0,0.00016892,2]
[361177969,1747325448481,-12629.50215115,0.00016892,2]
[361177970,1747325448490,-212.23495278,0.00016892,2]
[361177971,1747325448500,-160.0,0.00016894,2]
[361177973,1747325448510,-160.0,0.00016898,2]
[361177974,1747325448519,-151.0,0.00016903,2]